bitfinex-derivatives/quotes_ETHF0:USTF0_20250919
["timestamp","ask_amount","ask_price","bid_price","bid_amount"]
[1758312069521,0.67206741,4453.3,4452.6,0.806]
[1758312069718,0.67206741,4453.2,4452.7,0.3461]
[1758312069921,0.67206741,4453.1,4453.0,0.4843]
[1758312070118,0.67206741,4453.1,4452.3,3.2078]
[1758312070119,3.87986741,4453.1,4452.3,0.75015]
[1758312070315,3.2078,4452.6,4452.4,0.42645]
[1758312070511,0.67206741,4452.5,4452.4,0.0224]
[1758312070913,0.67206741,4452.5,4452.3,0.40405]
[1758312071117,0.6715878,4452.4,4451.8,0.4041]
[1758312071319,3.2078,4452.1,4451.8,0.4041]
[1758312071622,0.6715878,4452.0,4451.6,0.40412]
[1758312071823,0.6715878,4451.9,4451.6,0.40412]
[1758312072118,0.6715878,4451.8,4451.5,0.88843]
[1758312072422,0.6715878,4451.7,4451.5,0.54233]
[1758312072625,0.231,4452.5,4451.5,1.11733]
[1758312072626,0.6715878,4451.6,4451.5,1.11733]
[1758312073221,0.6715878,4451.6,4451.5,1.33553]
[1758312073417,0.20872174,4451.6,4451.5,1.33553]
[1758312073612,0.20872174,4451.6,4451.5,1.56653]
[1758312074622,0.20872174,4451.6,4451.5,1.33553]
[1758312074823,0.20872174,4451.6,4451.5,1.56653]
[1758312078223,0.194,4453.0,4451.5,1.56653]
[1758312078224,3.2078,4453.1,4453.0,0.4843]
[1758312078526,0.46385902,4453.1,4453.0,0.9314]
[1758312082028,0.46385902,4453.1,4453.0,0.7132]
[1758312083337,0.46385902,4453.1,4453.0,0.9314]
[1758312087229,0.46385902,4453.1,4453.0,1.1614]
[1758312089530,2.01365579,4454.5,4454.2,2.8138712]
[1758312089734,0.46805356,4454.4,4454.3,1.39588]
[1758312089937,0.46805356,4454.4,4454.3,0.95188]
[1758312090229,0.3345,4456.4,4455.8,0.40374]
[1758312090435,0.3345,4456.2,4455.7,0.40374]
[1758312090629,0.20485313,4456.3,4455.7,0.40374]
[1758312090630,0.20485313,4456.1,4455.7,0.40374]
[1758312090831,0.3345,4455.9,4455.8,0.40374]
[1758312091027,0.20485313,4455.9,4455.7,0.318]
[1758312091337,0.3345,4455.7,4455.6,0.40375]
[1758312091536,0.53935313,4455.7,4455.6,0.72175]
[1758312091727,0.20485313,4455.7,4455.6,0.72175]
[1758312092130,0.3345,4455.6,4455.4,3.2078]
[1758312092327,0.53935313,4455.5,4455.4,3.61157]
[1758312092533,0.53935313,4455.5,4455.4,3.84257]
[1758312092838,0.97885313,4455.5,4455.4,3.92957]
[1758312093036,0.97885313,4455.5,4455.4,4.16057]
[1758312093443,0.97885313,4455.5,4455.4,4.37777]
[1758312093626,0.64435313,4455.5,4455.4,4.37777]
[1758312093831,0.64435313,4455.5,4455.4,4.60457]
[1758312094033,0.20485313,4455.5,4455.4,4.60457]
[1758312094329,0.2277,4455.9,4455.8,0.93894]
[1758312094532,0.2277,4455.9,4455.8,1.39574]
[1758312095837,0.3345,4455.8,4455.4,3.2078]
[1758312096044,0.2277,4455.1,4455.0,1.30201]
[1758312096228,0.774,4455.6,4455.5,0.40377]
[1758312096433,0.774,4455.6,4455.5,0.93897]
[1758312097035,0.4395,4455.6,4455.5,0.93897]
[1758312097231,0.03908314,4456.4,4455.5,0.85797]
[1758312097435,0.774,4456.0,4455.9,3.82873]
[1758312097641,0.4395,4456.0,4455.9,4.60353]
[1758312097837,0.4395,4456.0,4455.6,0.40375]
[1758312098043,0.774,4455.7,4455.6,0.40375]
[1758312098242,0.774,4455.7,4455.6,0.63475]
[1758312098443,0.03908314,4456.4,4455.6,0.549]
[1758312098743,0.4395,4456.2,4455.9,0.40372]
[1758312098938,0.4395,4456.0,4455.9,0.62092]
[1758312099244,0.774,4456.0,4455.9,0.62092]
[1758312099542,0.774,4456.0,4455.9,0.93892]
[1758312099942,0.2277,4456.0,4455.9,1.16572]
[1758312100146,0.774,4456.0,4455.9,0.62092]
[1758312100342,0.4395,4456.0,4455.9,1.16572]
[1758312100543,0.81308314,4456.4,4456.3,0.93889]
[1758312100740,0.81308314,4456.4,4455.8,0.40374]
[1758312100741,0.3345,4456.3,4455.8,0.40374]
[1758312100942,0.47858314,4456.4,4455.4,3.2078]
[1758312100943,0.4395,4455.9,4455.4,3.2078]
[1758312101245,0.774,4455.7,4455.6,0.40376]
[1758312102040,1.21170193,4455.7,4455.2,0.318]
[1758312102239,0.774,4455.4,4455.3,0.23]
[1758312102439,1.21170193,4455.4,4455.0,0.318]
[1758312102640,0.774,4455.0,4454.9,3.61162]
[1758312102850,1.21170193,4455.0,4454.9,3.61162]
[1758312103447,1.21170193,4455.0,4454.9,4.14682]
[1758312103634,0.66540193,4455.0,4454.9,4.37362]
[1758312105541,0.43770193,4455.0,4454.9,4.37362]
[1758312105841,0.66597934,4455.7,4455.6,1.16576]
[1758312106147,0.43827934,4455.7,4455.6,1.16576]
[1758312106344,9.34e-06,4455.7,4455.6,7.92956]
[1758312106538,9.34e-06,4455.7,4455.6,7.5258]
[1758312106740,9.34e-06,4455.7,4455.6,3.7578]
[1758312107134,9.34e-06,4455.7,4455.6,3.5258]
[1758312107344,9.34e-06,4455.7,4455.6,3.7578]
[1758312107740,9.34e-06,4455.7,4455.6,0.232]
[1758312108244,9.34e-06,4455.7,4455.5,0.40376]
[1758312108451,0.1161,4456.0,4455.5,0.63576]
[1758312108644,0.3345,4455.9,4455.5,0.232]
[1758312108847,0.1161,4456.0,4455.1,3.6116]
[1758312109040,0.3345,4455.9,4455.2,0.40379]
[1758312109236,3.2078,4456.1,4456.0,0.1362]
[1758312109442,3.2078,4456.1,4456.0,0.4542]
[1758312109744,7.5423,4456.1,4455.6,0.63575]
[1758312110040,0.3345,4456.0,4455.5,0.318]
[1758312110247,0.3345,4455.9,4455.5,0.72176]
[1758312110547,0.1161,4456.0,4455.5,0.318]
[1758312110746,0.1161,4456.0,4455.5,0.72176]
[1758312110938,0.3345,4455.9,4455.5,0.72176]
[1758312111136,0.1161,4456.0,4455.5,0.72176]
[1758312111343,0.3345,4455.9,4455.2,0.40379]
[1758312112636,0.3345,4455.9,4455.4,0.40377]
[1758312112840,0.2277,4455.5,4455.4,0.62097]
[1758312113039,0.2277,4455.5,4455.4,0.93897]
[1758312113242,0.3345,4455.9,4455.4,0.93897]
[1758312113243,0.2277,4455.9,4455.4,0.5448]
[1758312113547,0.2277,4455.9,4455.0,1.37772]
[1758312113548,0.2277,4456.0,4455.9,0.444]
[1758312113746,0.2277,4456.0,4455.9,0.762]
[1758312115048,0.774,4456.0,4455.6,0.40376]
[1758312115248,0.3345,4455.9,4455.7,0.72175]
[1758312115452,0.4395,4455.8,4455.7,0.93895]
[1758312115746,3.9818,4455.8,4455.7,0.318]
[1758312115950,0.774,4455.6,4455.5,0.5352]
[1758312116454,0.2277,4455.7,4455.6,1.16575]
[1758312116649,0.774,4455.7,4455.6,0.5352]
[1758312116847,0.774,4455.7,4455.5,0.40376]
[1758312117042,0.3345,4455.6,4455.3,0.40378]
[1758312117349,0.774,4455.5,4455.4,0.93897]
[1758312118456,1.21736203,4455.5,4455.4,0.93897]
[1758312118949,1.07618694,4455.5,4455.4,0.93897]
[1758312119143,1.42428694,4455.5,4455.4,0.5352]
[1758312119350,0.63668694,4455.5,4455.4,0.7863]
[1758312119552,0.63668694,4455.5,4455.4,1.0173]
[1758312119752,1.40938694,4455.5,4455.4,0.57]
[1758312120152,0.4459,4455.2,4455.1,4.1816]
[1758312120453,1.08258694,4455.2,4455.1,4.3979]
[1758312121151,0.85298694,4455.2,4455.1,4.3979]
[1758312121340,1.08258694,4455.2,4454.9,0.40382]
[1758312121545,0.1161,4455.5,4455.0,0.9254]
[1758312121546,1.08258694,4455.1,4455.0,0.9254]
[1758312121745,1.08258694,4455.1,4454.7,0.40383]
[1758312121949,1.08258694,4455.0,4454.9,0.7863]
[1758312122553,1.40938694,4455.0,4454.9,0.7863]
[1758312123054,1.40938694,4455.0,4454.9,0.57]
[1758312123453,0.7727,4454.7,4454.6,0.0224]
[1758312123653,0.1352,4454.0,4453.8,0.22687001]
[1758312123852,1.40938694,4453.9,4453.8,0.44357001]
[1758312124156,0.63668694,4453.9,4453.8,0.65987001]
[1758312124658,1.40938694,4453.9,4453.8,0.65987001]
[1758312124853,0.63668694,4453.9,4453.8,0.65987001]
[1758312125658,0.63668694,4453.9,4453.8,1.01317001]
[1758312126144,0.63668694,4453.9,4453.8,0.22687001]
[1758312126145,1.17978694,4453.9,4453.8,0.22687001]
[1758312126346,1.40938694,4453.9,4453.8,0.65987001]
[1758312126548,1.40938694,4453.9,4453.8,0.22687001]
[1758312127355,1.40938694,4453.9,4453.8,0.44357001]
[1758312127856,1.40938694,4453.9,4453.8,1.01317001]
[1758312128054,1.40938694,4453.9,4453.8,0.65987001]
[1758312129558,1.40938694,4453.9,4453.8,0.22687001]
[1758312130259,1.40938694,4453.9,4453.8,0.44357001]
[1758312131060,1.40938694,4453.9,4453.8,0.65987001]
[1758312131358,1.40938694,4453.9,4453.8,0.22687001]
[1758312131859,1.40938694,4453.9,4453.8,0.44357001]
[1758312132455,1.40938694,4453.9,4453.8,0.22687001]
[1758312133451,0.5431,4452.6,4452.5,3.54646999]
[1758312133658,1.40938694,4452.6,4452.5,3.97946999]
[1758312133962,0.63668694,4452.6,4452.5,4.37436999]
[1758312135159,0.63668694,4452.6,4452.5,4.60636999]
[1758312136762,0.2163,4453.5,4453.4,0.40395]
[1758312136966,1.1215219,4453.5,4453.4,0.40395]
[1758312137766,0.8919219,4453.5,4453.4,0.40395]
[1758312138773,0.6756219,4453.5,4453.4,0.40395]
[1758312141267,0.8919219,4453.5,4453.4,0.40395]
[1758312141461,0.6756219,4453.5,4453.4,0.40395]
[1758312141866,0.6756219,4453.5,4453.4,0.63495]
[1758312142367,0.462,4453.5,4453.4,0.63495]
[1758312143770,0.6783,4453.5,4453.4,0.63495]
[1758312146163,0.462,4453.5,4453.4,0.63495]
[1758312146367,0.462,4453.5,4453.4,4.63495]
[1758312146967,0.9079,4453.5,4453.4,0.63495]
[1758312147365,0.3268,4452.1,4452.0,3.2078]
[1758312147666,0.6783,4452.0,4451.9,0.40409]
[1758312147866,0.6783,4452.0,4451.9,3.84389]
[1758312148069,0.462,4452.0,4451.9,7.84389]
[1758312148770,0.69096906,4452.0,4451.9,7.84389]
[1758312148963,0.03473845,4452.0,4451.9,7.84389]
[1758312149170,0.1352,4452.5,4452.3,0.40405]
[1758312149467,0.83136624,4452.4,4452.3,0.40405]
[1758312149665,0.47876624,4452.4,4452.3,3.84385]
[1758312150063,0.83136624,4452.4,4452.3,3.84385]
[1758312151670,1.28516624,4452.4,4452.3,3.84385]
[1758312151872,1.05836624,4452.4,4452.3,3.84385]
[1758312152063,1.05836624,4452.4,4452.3,3.61185]
[1758312152265,1.28516624,4452.4,4452.3,3.84385]
[1758312153773,0.3526,4452.9,4452.5,1.0101]
[1758312154074,0.1352,4453.5,4453.4,0.40396]
[1758312154276,0.1352,4453.5,4453.4,3.84376]
[1758312154277,0.3622,4453.5,4453.4,3.84376]
[1758312154570,0.4878,4453.5,4453.4,3.84376]
[1758312154765,0.3526,4453.9,4453.5,1.00986]
[1758312154961,0.133,4454.5,4453.8,3.61172]
[1758312155167,0.3526,4454.3,4453.9,0.232]
[1758312155366,0.4856,4454.0,4453.9,0.232]
[1758312156068,0.133,4454.5,4454.0,1.00976]
[1758312156270,0.3526,4454.4,4454.3,0.40388]
[1758312156470,0.3526,4454.4,4454.3,3.84368]
[1758312156875,0.5796,4454.4,4454.3,3.84368]
[1758312157064,0.8064,4454.4,4454.3,3.84368]
[1758312157263,0.8064,4454.4,4454.3,3.61168]
[1758312157470,0.8064,4454.4,4454.3,3.84368]
[1758312158878,0.3526,4454.4,4454.3,3.84368]
[1758312159077,0.5796,4454.4,4454.3,3.84368]
[1758312159376,0.8064,4454.4,4454.3,3.84368]
[1758312160573,0.3526,4454.4,4454.3,3.84368]
[1758312161178,0.5775935,4454.4,4454.3,3.84368]
[1758312162180,0.22493778,4454.4,4454.3,3.84368]
[1758312162877,7.78e-06,4454.4,4454.3,7.84368]
[1758312163479,0.3526,4454.8,4454.7,0.40384]
[1758312163779,0.3526,4454.8,4454.7,0.63584]
[1758312164077,0.4856,4455.5,4455.4,0.40378]
[1758312164282,0.7126,4455.5,4455.4,3.84358]
[1758312165882,0.4856,4455.5,4455.4,3.84358]
[1758312166582,0.9394,4455.5,4455.4,3.4398]
[1758312166780,1.42881634,4455.5,4455.4,3.4398]
[1758312166982,0.9394,4455.5,4455.4,3.4398]
[1758312167172,1.4288079,4455.5,4455.4,3.4398]
[1758312167377,0.9394,4455.5,4455.4,3.4398]
[1758312168078,1.42873049,4455.5,4455.4,3.4398]
[1758312168985,0.97493049,4455.5,4455.4,3.4398]
[1758312169198,0.4856,4455.5,4455.4,3.4398]
[1758312170582,0.3526,4455.9,4455.8,0.40374]
[1758312170787,0.133,4456.5,4455.8,0.63574]
[1758312170987,0.4856,4456.0,4455.9,3.2078]
[1758312172290,0.7126,4456.0,4455.9,3.2078]
[1758312172489,0.9394,4456.0,4455.9,3.2078]
[1758312172993,0.9394,4456.0,4455.9,3.4398]
[1758312173187,0.9394,4456.0,4455.9,3.2078]
[1758312173494,1.42811393,4456.0,4455.9,3.4398]
[1758312175392,1.64932831,4456.0,4455.9,3.4398]
[1758312176294,1.64932831,4456.0,4455.9,3.4388]
[1758312177093,1.64932831,4456.0,4455.9,3.84253]
[1758312182892,0.8202,4455.9,4455.8,0.63474]
[1758312183092,1.53012831,4455.9,4455.8,0.63474]
[1758312183290,1.53012831,4455.9,4455.8,0.231]
[1758312183489,1.53012831,4455.9,4455.6,0.63476]
[1758312183686,0.8202,4455.7,4455.6,0.63476]
[1758312183885,1.53012831,4455.7,4455.6,0.63476]
[1758312184496,1.06322831,4455.7,4455.6,0.63476]
[1758312184689,1.53012831,4455.7,4455.6,0.63476]
[1758312185697,1.04141438,4455.7,4455.6,0.63476]
[1758312187200,1.53152498,4455.7,4455.6,0.63476]
[1758312187501,1.29822498,4455.7,4455.6,0.63476]
[1758312187800,1.06462498,4455.7,4455.6,0.63476]
[1758312189299,1.29822498,4455.7,4455.6,0.63476]
[1758312190001,1.29822498,4455.7,4455.6,4.63476]
[1758312190002,0.71132498,4455.7,4455.6,4.63476]
[1758312190203,4.98e-06,4455.7,4455.6,4.85919]
[1758312190701,4.98e-06,4455.7,4455.6,4.63476]
[1758312194799,4.98e-06,4455.7,4455.6,5.02396]
[1758312194999,0.23360498,4455.7,4455.6,1.08196]
[1758312196206,4.98e-06,4455.7,4455.6,1.08196]
[1758312196404,4.98e-06,4455.7,4455.6,1.41866]
[1758312196604,0.1404,4456.0,4455.9,0.40373]
[1758312196806,0.374,4456.0,4455.9,4.62643]
[1758312197105,0.133,4456.5,4456.4,0.40369]
[1758312197305,0.5999,4456.5,4456.4,0.85139]
[1758312198409,0.9532,4456.5,4456.4,0.63469]
[1758312199607,0.9532,4456.5,4456.4,0.85139]
[1758312199810,0.9532,4456.5,4456.4,1.08189]
[1758312200506,0.9532,4456.5,4456.4,0.63469]
[1758312202315,1.16948467,4456.5,4456.4,0.85139]
[1758312204608,1.16948467,4456.5,4456.4,0.63469]
[1758312205710,1.16948467,4456.5,4456.4,0.85139]
[1758312206207,1.16948467,4456.5,4456.4,1.08189]
[1758312206408,0.56958467,4456.5,4456.4,1.41859]
[1758312206614,0.80318467,4456.5,4456.4,1.41859]
[1758312206810,1.29204697,4456.5,4456.4,1.41859]
[1758312208406,1.29204697,4456.5,4456.4,4.62639]
[1758312208604,0.70514697,4456.5,4456.4,4.62639]
[1758312210217,0.22311985,4456.5,4456.4,8.62639]
[1758312213922,1.15221985,4456.5,4456.4,3.82819]
[1758312214223,1.15221985,4456.5,4456.4,4.05819]
[1758312214423,1.15221985,4456.5,4456.4,3.82818]
[1758312214818,1.15221985,4456.5,4456.4,4.05818]
[1758312215321,1.15221985,4456.5,4456.4,0.85038]
[1758312216426,1.15221985,4456.5,4456.4,0.62038]
[1758312216625,1.15221985,4456.5,4456.4,0.84508]
[1758312216825,1.15221985,4456.5,4456.4,4.60648]
[1758312217219,0.22311985,4456.5,4456.4,4.60648]
[1758312220225,0.00579511,4457.2,4457.0,0.0865]
[1758312220520,0.00579511,4457.2,4457.1,4.60592]
[1758312222130,0.21318715,4457.2,4457.1,4.60592]
[1758312226727,0.77628715,4457.2,4457.1,4.60592]
[1758312226930,1.01018715,4457.2,4457.1,4.28232]
[1758312229334,1.01018715,4457.2,4457.1,3.424]
[1758312229535,1.01018715,4457.2,4457.1,4.05762]
[1758312229733,1.01018715,4457.2,4457.1,4.28232]
[1758312230434,1.01018715,4457.2,4457.1,4.05762]
[1758312231635,1.01018715,4457.2,4457.1,4.28232]
[1758312231833,1.01018715,4457.2,4457.1,4.60592]
[1758312232129,0.55378715,4457.2,4457.1,4.60592]
[1758312232334,0.70189254,4457.2,4457.1,4.60592]
[1758312234836,1.04249254,4457.2,4457.1,4.60592]
[1758312236137,0.70189254,4457.2,4457.1,4.60592]
[1758312236341,1.04249254,4457.2,4457.1,4.60592]
[1758312236737,1.26499254,4457.2,4457.1,4.60592]
[1758312236933,1.49889254,4457.2,4457.1,4.28232]
[1758312238341,1.26499254,4457.2,4457.1,4.60592]
[1758312238741,1.48799254,4457.2,4457.1,4.05762]
[1758312239348,1.48799254,4457.2,4457.1,3.4378]
[1758312240248,1.48799254,4457.2,4457.1,3.84142]
[1758312240542,1.48799254,4457.2,4457.1,3.4378]
[1758312241337,5.48799254,4457.2,4457.1,3.4378]
[1758312242044,5.48799254,4457.2,4457.1,3.2078]
[1758312243244,0.9266,4457.0,4456.9,0.2514]
[1758312243445,1.62262722,4457.0,4456.9,0.2514]
[1758312244140,1.13392183,4457.0,4456.9,0.229]
[1758312244339,1.62066575,4457.0,4456.9,0.229]
[1758312245137,0.4684,4456.7,4456.6,0.229]
[1758312245340,1.48116575,4456.7,4456.6,0.229]
[1758312247541,1.4878466,4456.7,4456.6,0.229]
[1758312249943,1.4878466,4456.7,4456.6,0.4592]
[1758312250546,1.4878466,4456.7,4456.6,1.09287]
[1758312250847,1.4878466,4456.7,4456.6,1.43447]
[1758312251849,1.48740423,4456.7,4456.6,1.43447]
[1758312255750,1.48740423,4456.7,4456.6,1.09287]
[1758312256953,1.48740423,4456.7,4456.6,0.6892]
[1758312257556,1.48740423,4456.7,4456.6,0.229]
[1758312257851,1.48740423,4456.7,4456.6,0.63267]
[1758312258850,1.48740423,4456.7,4456.6,0.86287]
[1758312259955,1.48740423,4456.7,4456.6,1.43447]
[1758312260143,1.48740423,4456.7,4456.6,1.09287]
[1758312261844,1.48740423,4456.7,4456.6,1.43447]
[1758312262047,0.70030423,4456.7,4456.6,1.43447]
[1758312262548,1.25360423,4456.7,4456.6,1.43447]
[1758312262758,1.48740423,4456.7,4456.6,1.09287]
[1758312262959,1.48740423,4456.7,4456.6,1.43447]
[1758312263847,0.70030423,4456.7,4456.6,1.43447]
[1758312264948,1.48740423,4456.7,4456.6,1.0308]
[1758312265255,1.48740423,4456.7,4456.6,0.229]
[1758312265754,1.48740423,4456.7,4456.6,0.63267]
[1758312266256,1.48740423,4456.7,4456.6,0.86287]
[1758312266452,1.48740423,4456.7,4456.6,1.43447]
[1758312266649,1.01900423,4456.7,4456.6,1.43447]
[1758312267658,1.01933422,4456.7,4456.6,1.43447]
[1758312267859,0.70063422,4456.7,4456.6,1.43447]
[1758312268052,1.01933422,4456.7,4456.6,1.43447]
[1758312269160,1.25393422,4456.7,4456.6,1.43447]
[1758312269763,1.01933422,4456.7,4456.6,1.43447]
[1758312270759,1.25183422,4456.7,4456.6,1.43447]
[1758312271058,0.70063422,4456.7,4456.6,1.43447]
[1758312271459,0.70063422,4456.7,4456.6,5.43447]
[1758312272763,1.48473422,4456.7,4456.6,1.09287]
[1758312273864,1.48473422,4456.7,4456.6,1.41407]
[1758312274259,1.48473422,4456.7,4456.6,1.09287]
[1758312274560,1.48473422,4456.7,4456.6,0.63267]
[1758312275057,1.48473422,4456.7,4456.6,0.84907]
[1758312275259,1.48473422,4456.7,4456.6,1.38787]
[1758312276466,1.25603422,4456.7,4456.6,1.38787]
[1758312277364,1.48473422,4456.7,4456.6,1.38787]
[1758312277664,1.48473422,4456.7,4456.6,1.06667]
[1758312277864,1.48473422,4456.7,4456.6,0.229]
[1758312278064,1.48473422,4456.7,4456.6,0.63267]
[1758312278560,1.48473422,4456.7,4456.6,0.40367]
[1758312278764,1.48473422,4456.7,4456.6,0.63267]
[1758312279156,1.48473422,4456.7,4456.6,0.40367]
[1758312279362,1.48473422,4456.7,4456.6,0.63267]
[1758312281865,1.48473422,4456.7,4456.6,0.84907]
[1758312282268,1.48473422,4456.7,4456.6,0.62007]
[1758312282466,1.48473422,4456.7,4456.6,1.38787]
[1758312283270,1.25603422,4456.7,4456.6,1.38787]
[1758312283466,1.48473422,4456.7,4456.6,1.38787]
[1758312289476,1.50511031,4456.7,4456.6,1.38787]
[1758312289677,0.72101031,4456.7,4456.6,1.38787]
[1758312290375,0.72101031,4456.7,4456.6,5.61224999]
[1758312290679,0.72101031,4456.7,4456.6,5.38787]
[1758312295382,0.72096569,4456.7,4456.6,5.38787]
[1758312298281,0.23466414,4456.7,4456.6,5.38787]
[1758312299176,0.72064861,4456.7,4456.6,5.38787]
[1758312299673,1.05454861,4456.7,4456.6,1.38787]
[1758312299978,1.27124861,4456.7,4456.6,1.38787]
[1758312300482,1.47694861,4456.7,4456.6,1.38787]
[1758312302080,1.47694861,4456.7,4456.6,1.06667]
[1758312302385,1.47694861,4456.7,4456.6,0.63267]
[1758312302983,1.47694861,4456.7,4456.6,0.84497]
[1758312303379,1.27124861,4456.7,4456.6,1.36467]
[1758312303581,1.05454861,4456.7,4456.6,1.36467]
[1758312303785,1.27124861,4456.7,4456.6,1.36467]
[1758312305076,1.47694861,4456.7,4456.6,0.63267]
[1758312306185,1.47581711,4456.7,4456.6,0.63267]
[1758312308387,1.47581711,4456.7,4456.6,0.229]
[1758312308586,5.47581711,4456.7,4456.6,0.229]
[1758312310382,0.7563,4456.6,4456.5,3.2078]
[1758312310679,1.47581711,4456.6,4456.5,3.2078]
[1758312310986,1.47581711,4456.6,4456.5,3.4368]
[1758312313788,1.47581711,4456.6,4456.5,3.84048]
[1758312314987,1.47581711,4456.6,4456.5,3.4368]
[1758312315581,1.47581711,4456.6,4456.5,3.2078]
[1758312315784,1.47581711,4456.6,4456.5,3.4368]
[1758312316691,1.47581711,4456.6,4456.5,3.6491]
[1758312316887,1.47581711,4456.6,4456.5,3.4368]
[1758312319993,5.47581711,4456.6,4456.5,3.4368]
[1758312321092,0.4224,4456.4,4456.3,0.0224]
[1758312321295,1.47581711,4456.4,4456.3,0.0224]
[1758312321592,1.47581711,4456.4,4456.2,0.229]
[1758312321790,1.47581711,4456.3,4456.2,0.229]
[1758312321989,1.14191711,4456.3,4456.0,3.2078]
[1758312322290,0.7563,4456.1,4456.0,3.2078]
[1758312322493,1.47581711,4456.1,4456.0,3.2078]
[1758312323530,0.1334,4456.0,4455.9,0.2123]
[1758312323770,1.27531711,4456.0,4455.9,0.2123]
[1758312324195,1.60921711,4456.0,4455.9,0.2123]
[1758312324693,1.60921711,4456.0,4455.8,0.229]
[1758312324897,1.47581711,4455.9,4455.8,0.229]
[1758312325086,1.47400379,4455.9,4455.8,0.229]
[1758312326998,1.47400379,4455.9,4455.7,0.0224]
[1758312327199,1.47400379,4455.8,4455.7,0.0224]
[1758312328889,1.14010379,4455.8,4455.5,3.4368]
[1758312329097,0.7167,4455.6,4455.5,3.6595]
[1758312329284,1.43440379,4455.6,4455.5,3.6595]
[1758312329796,0.5406,4455.5,4455.4,0.229]
[1758312329997,1.56680379,4455.5,4455.4,0.4517]
[1758312330199,1.56628128,4455.5,4455.4,0.85548]
[1758312330700,1.56628128,4455.5,4455.4,1.20008]
[1758312331095,1.56628128,4455.5,4455.4,1.05718]
[1758312336396,1.36488128,4455.5,4455.4,1.20008]
[1758312336596,0.71718128,4455.5,4455.4,5.20008]
[1758312336897,0.6487,4456.5,4456.4,0.40368]
[1758312337098,1.13371018,4456.5,4456.4,0.63268]
[1758312339304,1.33511018,4456.5,4456.4,0.63268]
[1758312339702,1.33511018,4456.5,4456.4,0.229]
[1758312340302,0.5153,4456.4,4456.3,0.40369]
[1758312340502,1.00031018,4456.4,4456.3,0.63269]
[1758312341005,1.20171018,4456.4,4456.3,0.63269]
[1758312341596,1.20171018,4456.4,4456.3,0.40369]
[1758312341796,1.20171018,4456.4,4456.3,0.63269]
[1758312342603,1.20171018,4456.4,4456.3,0.229]
[1758312343002,1.20171018,4456.4,4456.3,0.63269]
[1758312343704,1.20171018,4456.4,4456.3,0.40369]
[1758312343904,1.20171018,4456.4,4456.3,0.63269]
[1758312345499,1.20171018,4456.4,4456.3,0.229]
[1758312347098,4.89321018,4456.4,4455.7,0.40374]
[1758312347294,0.7167,4455.9,4455.8,0.229]
[1758312347503,1.20171018,4455.9,4455.8,0.229]
[1758312348101,1.20171018,4455.9,4455.8,0.85494]
[1758312348799,1.20171018,4455.9,4455.8,0.4512]
[1758312349009,1.43199858,4455.9,4455.8,0.229]
[1758312351803,1.66099858,4455.9,4455.2,31.67269]
[1758312352006,0.5153,4455.3,4455.2,31.67269]
[1758312352303,1.43199858,4455.3,4455.2,0.229]
[1758312354008,1.43199858,4455.3,4455.2,0.4512]
[1758312355311,1.43199858,4455.3,4455.2,0.85499]
[1758312357407,1.43199858,4455.3,4455.2,0.229]
[1758312357808,1.43199858,4455.3,4455.2,0.63279]
[1758312358511,1.43199858,4455.3,4455.2,0.40379]
[1758312364908,1.12349858,4455.3,4455.1,0.4038]
[1758312365104,1.51719858,4455.2,4455.1,0.4038]
[1758312367514,1.51719858,4455.2,4455.1,0.6399]
[1758312368305,1.52073554,4455.2,4455.1,0.6399]
[1758312371618,1.52073554,4455.2,4455.1,0.4038]
[1758312372711,4.72853554,4455.2,4455.0,0.229]
[1758312373018,1.52073554,4455.1,4455.0,0.229]
[1758312373512,0.1368,4455.0,4454.5,0.40385]
[1758312373717,0.4589,4454.6,4454.5,0.40385]
[1758312373915,0.4589,4454.6,4454.1,3.2078]
[1758312373916,0.1368,4454.5,4454.1,3.2078]
[1758312374121,0.8019,4454.2,4454.1,3.61169]
[1758312374418,1.52073554,4454.2,4454.1,3.84069]
[1758312374619,1.52073554,4454.2,4454.1,4.07679]
[1758312377518,0.1368,4454.0,4453.8,0.40391]
[1758312377819,0.1368,4454.0,4453.6,3.2078]
[1758312377820,1.17773554,4453.9,4453.6,3.2078]
[1758312378010,0.8019,4453.7,4453.6,3.2078]
[1758312378214,1.52073554,4453.7,4453.6,3.2078]
[1758312378620,1.52073554,4453.7,4453.5,0.40395]
[1758312378923,1.52073554,4453.6,4453.5,0.40395]
[1758312379219,0.9387,4453.5,4453.4,0.229]
[1758312379417,1.65753554,4453.5,4453.4,0.229]
[1758312382922,1.65753554,4453.5,4453.2,0.0224]
[1758312383223,0.9387,4452.5,4452.4,0.64015]
[1758312383526,1.1689884,4452.5,4452.4,1.10615]
[1758312384018,1.1689884,4452.5,4452.4,0.87715]
[1758312384213,1.1689884,4452.5,4452.4,0.64015]
[1758312384625,0.8259884,4452.5,4452.2,0.63306]
[1758312384924,0.8019,4452.3,4452.2,0.86916]
[1758312385124,1.0321884,4452.3,4452.2,0.4651]
[1758312385313,1.51945234,4452.3,4452.2,0.229]
[1758312385725,4.72725234,4452.3,4452.2,0.229]
[1758312386024,0.9387,4451.5,4451.4,0.66264]
[1758312386223,1.1689884,4451.5,4451.4,0.89164]
[1758312386417,1.1689884,4451.5,4451.4,1.12864]
[1758312388025,1.1689884,4451.5,4451.4,1.10624]
[1758312388728,1.1689884,4451.5,4451.4,0.63314]
[1758312389325,1.1689884,4451.5,4451.4,0.86264]
[1758312391527,1.1689884,4451.5,4451.4,0.63314]
[1758312392329,0.4554,4451.2,4451.1,3.61196]
[1758312392628,1.0275884,4451.2,4451.1,3.84096]
[1758312393231,1.0275884,4451.2,4451.1,4.07046]
[1758312393429,1.0275884,4451.2,4451.1,0.4585]
[1758312393736,1.0275884,4451.2,4451.1,0.63317]
[1758312394234,1.0275884,4451.2,4450.1,3.6725]
[1758312394235,0.2363,4450.2,4450.1,3.6725]
[1758312394427,0.3419,4450.5,4450.4,1.06243]
[1758312394734,1.16566818,4450.5,4450.4,0.4647]